bitfinex-derivatives/quotes_BTCF0:USTF0_20250422
["timestamp","ask_amount","ask_price","bid_price","bid_amount"]
[1745282342671,0.005,87281.0,87280.0,0.26397638]
[1745282343172,0.005,87281.0,87280.0,0.46597638]
[1745282343574,0.23802042,87290.0,87289.0,0.1145596]
[1745282343775,0.23802042,87290.0,87289.0,0.49044384]
[1745282343975,0.17412042,87290.0,87289.0,0.52005117]
[1745282344175,0.0639,87295.0,87289.0,0.59849157]
[1745282344371,0.00014581,87302.0,87296.0,0.0572752]
[1745282344669,0.20186496,87304.0,87302.0,0.1145426]
[1745282345267,0.20186496,87304.0,87302.0,0.3065426]
[1745282345868,0.20186496,87304.0,87302.0,0.31725147]
[1745282346978,0.27096496,87304.0,87302.0,0.31725147]
[1745282347175,0.4309,87303.0,87302.0,0.3055426]
[1745282347476,0.5454413,87303.0,87302.0,0.3065426]
[1745282347673,0.6129413,87303.0,87302.0,0.19208]
[1745282347979,0.6129413,87303.0,87302.0,0.192]
[1745282348178,0.6129413,87303.0,87302.0,0.19208]
[1745282348370,0.6129413,87303.0,87302.0,0.192]
[1745282348571,0.6129413,87303.0,87302.0,0.3065426]
[1745282348771,0.6129413,87303.0,87302.0,0.33625794]
[1745282349480,0.4984,87303.0,87302.0,0.33625794]
[1745282350083,0.43098,87303.0,87302.0,0.35136647]
[1745282350373,0.00108,87303.0,87302.0,0.42036647]
[1745282350578,0.001,87303.0,87302.0,0.43802553]
[1745282350767,0.00108,87303.0,87302.0,0.43802442]
[1745282350972,0.00108,87303.0,87302.0,0.50302439]
[1745282351279,8e-05,87303.0,87302.0,0.50302439]
[1745282351670,8e-05,87303.0,87302.0,0.48891586]
[1745282352881,8e-05,87303.0,87302.0,0.48721636]
[1745282353075,8e-05,87303.0,87302.0,0.48729636]
[1745282353280,0.0572695,87305.0,87304.0,0.1145386]
[1745282353473,0.1255695,87305.0,87304.0,0.1145386]
[1745282353669,0.2566695,87305.0,87304.0,0.14425394]
[1745282353871,0.3712108,87305.0,87304.0,0.14425394]
[1745282354177,0.1994,87305.0,87304.0,0.33625394]
[1745282354378,0.3139386,87305.0,87304.0,0.40415394]
[1745282354573,0.1994,87305.0,87304.0,0.40415394]
[1745282354773,0.1994,87305.0,87304.0,0.40523394]
[1745282354976,0.19948,87305.0,87304.0,0.40523394]
[1745282355178,0.19948,87305.0,87304.0,0.47233394]
[1745282355572,8e-05,87305.0,87304.0,0.47233394]
[1745282355773,8e-05,87305.0,87304.0,0.48835675]
[1745282355968,0.005,87307.0,87306.0,0.1145373]
[1745282356178,0.005,87307.0,87306.0,0.32256011]
[1745282356375,0.005,87307.0,87306.0,0.32265418]
[1745282356879,0.005,87307.0,87306.0,0.32265405]
[1745282357274,0.00508,87307.0,87306.0,0.32401342]
[1745282358079,0.00508,87307.0,87306.0,0.32501342]
[1745282358876,0.3608,87318.0,87317.0,0.1145229]
[1745282359076,0.3608,87318.0,87317.0,0.3065229]
[1745282359278,0.4981,87318.0,87317.0,0.33623824]
[1745282359577,0.6126216,87318.0,87317.0,0.33623824]
[1745282359777,0.6126216,87318.0,87317.0,0.41013824]
[1745282360479,0.4991,87318.0,87317.0,0.41013824]
[1745282360870,0.001,87318.0,87317.0,0.41013824]
[1745282361378,0.1155216,87318.0,87317.0,0.41013824]
[1745282361770,0.1145216,87318.0,87317.0,0.41213824]
[1745282361974,0.2630216,87318.0,87317.0,0.33923824]
[1745282362176,0.2630216,87318.0,87317.0,0.22471534]
[1745282362579,0.2630216,87318.0,87317.0,0.22479534]
[1745282362879,0.2630216,87318.0,87317.0,0.33931824]
[1745282362880,0.5030216,87318.0,87317.0,0.33931824]
[1745282363081,0.2630216,87318.0,87317.0,0.33931824]
[1745282363387,0.2630216,87318.0,87317.0,0.3095229]
[1745282363772,0.2630216,87318.0,87317.0,0.33923824]
[1745282364684,0.5230216,87318.0,87317.0,0.33923824]
[1745282364877,0.2630216,87318.0,87317.0,0.33923824]
[1745282365073,0.6275456,87318.0,87317.0,0.22471534]
[1745282365274,0.1145308,87311.0,87310.0,0.0777]
[1745282365587,0.1145465,87300.0,87299.0,0.2292361]
[1745282365785,0.3608,87301.0,87300.0,0.1145452]
[1745282365981,0.3608,87301.0,87300.0,0.1862452]
[1745282366174,0.3608,87301.0,87300.0,0.4586252]
[1745282366375,0.4753439,87301.0,87300.0,0.4586252]
[1745282366571,0.6285439,87301.0,87300.0,0.4586252]
[1745282366973,0.3608,87301.0,87300.0,0.4586252]
[1745282367173,0.3250067,87308.0,87307.0,0.114536]
[1745282367583,0.15328,87308.0,87307.0,0.114536]
[1745282368181,8e-05,87308.0,87307.0,0.4747614]
[1745282368476,0.00017149,87309.0,87308.0,0.1145347]
[1745282368677,0.00017149,87309.0,87308.0,0.1308601]
[1745282368882,0.00017149,87309.0,87308.0,0.2827601]
[1745282369080,0.00017149,87309.0,87308.0,0.4747601]
[1745282369275,0.08694799,87309.0,87308.0,0.47428893]
[1745282370283,0.08694799,87309.0,87308.0,0.84082493]
[1745282370485,0.3608,87323.0,87322.0,0.1145163]
[1745282370786,0.475315,87323.0,87322.0,0.1145163]
[1745282371178,0.549815,87323.0,87322.0,0.3065163]
[1745282371573,0.4353,87323.0,87322.0,0.3065163]
[1745282371784,0.0745,87323.0,87322.0,0.3065163]
[1745282371979,0.189015,87323.0,87322.0,0.3065163]
[1745282372179,0.07458,87323.0,87322.0,0.3065163]
[1745282372585,0.265395,87323.0,87322.0,0.3065163]
[1745282372785,0.265395,87323.0,87322.0,0.3075163]
[1745282373185,0.265395,87323.0,87322.0,0.3085163]
[1745282373579,0.31273167,87323.0,87322.0,0.3085163]
[1745282378099,0.12191667,87323.0,87322.0,0.3085163]
[1745282378296,0.04741667,87323.0,87322.0,0.3085163]
[1745282378496,0.04733667,87323.0,87322.0,0.3085163]
[1745282378790,0.04741667,87323.0,87322.0,0.3085163]
[1745282378988,0.04741667,87323.0,87322.0,0.68522694]
[1745282379391,0.00510801,87333.0,87332.0,0.1145032]
[1745282379593,0.005,87333.0,87332.0,0.1145032]
[1745282380188,0.005,87333.0,87332.0,0.4590032]
[1745282380696,0.00508,87333.0,87332.0,0.4590032]
[1745282381293,0.23145606,87341.0,87340.0,0.1144927]
[1745282381486,0.62016157,87348.0,87347.0,0.1144836]
[1745282381690,0.25936157,87348.0,87347.0,0.1144836]
[1745282381894,0.25936157,87348.0,87347.0,0.13008539]
[1745282382090,0.25936157,87348.0,87347.0,0.32208535]
[1745282382288,0.25944157,87348.0,87347.0,0.3064836]
[1745282382484,0.25936157,87348.0,87347.0,0.7406836]
[1745282382686,8e-05,87348.0,87347.0,0.7406836]
[1745282382891,0.17392846,87354.0,87353.0,0.1144757]
[1745282383090,0.17392846,87354.0,87353.0,0.2646757]
[1745282383293,0.17392846,87354.0,87353.0,0.28023165]
[1745282383484,0.17392846,87354.0,87353.0,0.2636757]
[1745282383690,0.17400846,87354.0,87353.0,0.2636757]
[1745282383885,0.17400846,87354.0,87353.0,0.2616757]
[1745282384086,0.17500846,87354.0,87353.0,0.4536757]
[1745282385197,0.17500846,87354.0,87353.0,0.3792757]
[1745282385398,0.17600846,87354.0,87353.0,0.3792757]
[1745282385699,0.17600846,87354.0,87353.0,0.4582757]
[1745282388296,0.17592846,87354.0,87353.0,0.4582757]
[1745282388489,0.002,87354.0,87353.0,0.4582757]
[1745282389897,0.1164744,87354.0,87353.0,0.3064757]
[1745282390194,0.171734,87345.0,87344.0,0.0572434]
[1745282390395,0.532534,87345.0,87344.0,0.0572434]
[1745282390589,0.3608,87345.0,87344.0,0.0572434]
[1745282390789,0.4752862,87345.0,87344.0,0.0572434]
[1745282391196,0.8397742,87345.0,87344.0,0.192]
[1745282391404,0.8397742,87345.0,87344.0,0.3074875]
[1745282391597,0.8397742,87345.0,87344.0,0.3084875]
[1745282391796,0.5897742,87345.0,87344.0,0.3084875]
[1745282393898,0.4752862,87345.0,87344.0,0.3084875]
[1745282394499,0.4753662,87345.0,87344.0,0.3084875]
[1745282395905,0.36088,87345.0,87344.0,0.3084875]
[1745282397504,0.4753662,87345.0,87344.0,0.3084875]
[1745282398405,0.36088,87345.0,87344.0,0.3084875]
[1745282399803,8e-05,87345.0,87344.0,0.3084875]
[1745282400003,0.3608,87354.0,87353.0,0.1144757]
[1745282400303,0.4752744,87354.0,87353.0,0.1144757]
[1745282400906,0.4752744,87354.0,87353.0,0.2708757]
[1745282401102,0.4752744,87354.0,87353.0,0.3837757]
[1745282401298,0.4753544,87354.0,87353.0,0.3837757]
[1745282401503,0.4753544,87354.0,87353.0,0.3064757]
[1745282403613,0.4753544,87354.0,87353.0,0.3842757]
[1745282404507,0.36088,87354.0,87353.0,0.3842757]
[1745282404707,0.4753544,87354.0,87353.0,0.3842757]
[1745282404902,0.4752744,87354.0,87353.0,0.3842757]
[1745282405209,0.4753544,87354.0,87353.0,0.3842757]
[1745282406513,0.36088,87354.0,87353.0,0.3842757]
[1745282406914,0.3608,87354.0,87353.0,0.3842757]
[1745282407413,0.36088,87354.0,87353.0,0.40050759]
[1745282407811,0.005,87359.0,87358.0,0.1144691]
[1745282408215,0.005,87359.0,87358.0,0.47385933]
[1745282408514,0.00508,87359.0,87358.0,0.4575691]
[1745282409904,0.005,87359.0,87358.0,0.4575691]
[1745282410101,0.00708,87359.0,87358.0,0.4575691]
[1745282410907,0.00608,87359.0,87358.0,0.4575691]
[1745282411105,0.00508,87359.0,87358.0,0.4575691]
[1745282411614,0.00010801,87373.0,87372.0,0.1144508]
[1745282412110,0.50537244,87376.0,87375.0,0.1144469]
[1745282412313,0.14457244,87376.0,87375.0,0.1144469]
[1745282413002,0.14457244,87376.0,87375.0,0.1134469]
[1745282413309,0.14457244,87376.0,87375.0,0.3034469]
[1745282413513,0.14457244,87377.0,87376.0,0.1144456]
[1745282413810,0.14457244,87377.0,87376.0,0.2703456]
[1745282414011,0.14457244,87377.0,87376.0,0.2693456]
[1745282414212,0.14465244,87377.0,87376.0,0.4613456]
[1745282414407,0.14457244,87377.0,87376.0,0.4613456]
[1745282414608,0.17392846,87383.0,87382.0,0.1134377]
[1745282414809,0.17392846,87383.0,87382.0,0.1124377]
[1745282415110,0.17392846,87383.0,87382.0,0.3044377]
[1745282415613,0.28836486,87383.0,87382.0,0.3044377]
[1745282415817,0.28844486,87383.0,87382.0,0.4607377]
[1745282416206,0.28844486,87383.0,87382.0,0.3784377]
[1745282416613,0.44354486,87383.0,87382.0,0.3784377]
[1745282416804,0.17400846,87383.0,87382.0,0.3794377]
[1745282417008,0.17392846,87383.0,87382.0,0.3794377]
[1745282417208,0.17400846,87383.0,87382.0,0.3794377]
[1745282417610,8e-05,87383.0,87382.0,0.3794377]
[1745282420721,8e-05,87383.0,87382.0,0.4567377]
[1745282422614,0.005,87385.0,87384.0,0.1144351]
[1745282423218,0.005,87385.0,87384.0,0.3064351]
[1745282423810,0.00508,87385.0,87384.0,0.3064351]
[1745282426317,0.3608,87389.0,87388.0,0.1144298]
[1745282426613,0.0622001,87411.0,87388.0,0.1144298]
[1745282426614,0.3608,87406.0,87399.0,0.1144154]
[1745282426817,0.00010801,87402.0,87399.0,0.1144154]
[1745282427007,0.114409,87404.0,87399.0,0.1144154]
[1745282427209,0.1144108,87403.0,87399.0,0.3064154]
[1745282427408,0.1144108,87403.0,87399.0,0.47896592]
[1745282427719,0.10008,87400.0,87399.0,0.47896592]
[1745282428114,0.10108,87400.0,87399.0,0.47896592]
[1745282428510,0.101,87400.0,87399.0,0.47896592]
[1745282428706,0.10108,87400.0,87399.0,0.47896592]
[1745282430315,0.10008,87400.0,87399.0,0.47896592]
[1745282431321,0.2144941,87400.0,87399.0,0.47896592]
[1745282431511,0.2144941,87400.0,87399.0,0.192]
[1745282432118,0.3714941,87400.0,87399.0,0.192]
[1745282432318,0.4287017,87400.0,87399.0,0.1154154]
[1745282433118,0.4287017,87400.0,87399.0,0.3074154]
[1745282433924,0.4287017,87400.0,87399.0,0.193]
[1745282434222,0.4287017,87400.0,87381.0,0.3608]
[1745282434223,0.1144246,87392.0,87382.0,0.0818]
[1745282434421,0.4752246,87392.0,87391.0,0.11459753]
[1745282435227,0.6340246,87392.0,87391.0,0.30659753]
[1745282435521,0.6340246,87392.0,87391.0,0.30959753]
[1745282439127,0.5196,87392.0,87391.0,0.30959753]
[1745282439428,0.6340246,87392.0,87391.0,0.30959753]
[1745282439832,0.6341046,87392.0,87391.0,0.30959753]
[1745282445431,0.6341046,87392.0,87391.0,0.19517163]
[1745282445631,0.1144364,87383.0,87382.0,0.2527539]
[1745282446019,0.1144364,87383.0,87382.0,0.1716539]
[1745282446220,0.1144364,87383.0,87382.0,0.3636539]
[1745282446428,0.2824364,87383.0,87382.0,0.3636539]
[1745282446929,0.2824364,87383.0,87382.0,0.3656539]
[1745282447123,0.168,87383.0,87382.0,0.3676539]
[1745282447332,0.0572141,87390.0,87389.0,0.1144272]
[1745282447522,0.1414141,87390.0,87389.0,0.1144272]
[1745282447726,0.1414941,87390.0,87389.0,0.1144272]
[1745282448130,0.1414941,87390.0,87389.0,0.3064272]
[1745282448636,0.0572941,87390.0,87389.0,0.3074272]
[1745282449134,0.0572941,87390.0,87389.0,0.3882272]
[1745282450239,0.0572941,87390.0,87389.0,0.3892272]
[1745282450439,0.1392941,87390.0,87389.0,0.3892272]
[1745282452040,0.0572941,87390.0,87389.0,0.3892272]
[1745282452231,8e-05,87390.0,87389.0,0.3892272]
[1745282452635,0.11592319,87394.0,87391.0,0.0572124]
[1745282452835,0.11592319,87394.0,87393.0,0.4752233]
[1745282453232,0.11592319,87394.0,87393.0,0.5665233]
[1745282453637,0.11600319,87394.0,87393.0,0.5665233]
[1745282453938,0.1448907,87404.0,87399.0,0.1144154]
[1745282454136,0.2593001,87404.0,87399.0,0.1144154]
[1745282454335,0.1448907,87404.0,87399.0,0.1144154]
[1745282455232,0.10008,87400.0,87399.0,0.3064154]
[1745282455434,0.005,87411.0,87410.0,0.114401]
[1745282455934,0.11596465,87415.0,87414.0,0.1143958]
[1745282456129,0.11596465,87415.0,87414.0,0.3063958]
[1745282456335,0.14499871,87424.0,87423.0,0.114384]
[1745282457140,0.1448907,87424.0,87423.0,0.306384]
[1745282457638,0.17392846,87434.0,87423.0,0.306384]
[1745282457839,0.17403647,87434.0,87433.0,0.114371]
[1745282458035,0.17392846,87434.0,87433.0,0.114371]
[1745282458231,0.17400846,87434.0,87433.0,0.114371]
[1745282458441,0.17392846,87434.0,87433.0,0.195671]
[1745282458832,0.17400846,87434.0,87433.0,0.195671]
[1745282459145,0.17500846,87434.0,87433.0,0.387671]
[1745282459442,0.17492846,87434.0,87433.0,0.3962759]
[1745282459641,0.17400846,87434.0,87433.0,0.3992759]
[1745282460039,0.17400846,87434.0,87433.0,0.4092759]
[1745282460235,0.00010801,87445.0,87444.0,0.1143566]
[1745282460439,0.4751432,87455.0,87451.0,0.1143474]
[1745282460641,0.3608,87455.0,87451.0,0.1143474]
[1745282460836,0.4751433,87455.0,87451.0,0.1143474]
[1745282461143,0.4751433,87455.0,87454.0,0.1143435]
[1745282461335,0.3608,87455.0,87454.0,0.1143435]
[1745282461536,0.3608,87455.0,87454.0,0.12594685]
[1745282462141,0.36088,87455.0,87454.0,0.31794685]
[1745282464947,8e-05,87455.0,87454.0,0.31794685]
[1745282466435,1e-08,87463.0,87462.0,0.114333]
[1745282466637,0.1143084,87481.0,87480.0,0.1143082]
[1745282466836,0.1638,87482.0,87465.0,0.0823]
[1745282467145,0.0571641,87466.0,87449.0,0.1715156]
[1745282467341,0.0571641,87466.0,87465.0,0.00017152]
[1745282467644,0.13,87466.0,87436.0,0.00171547]
[1745282467949,0.1143657,87437.0,87436.0,0.00171547]
[1745282468138,0.1143657,87437.0,87436.0,0.11608247]
[1745282468339,0.0571816,87439.0,87438.0,0.1143644]
[1745282469250,0.2491816,87439.0,87438.0,0.1143644]
[1745282469748,0.2491816,87439.0,87438.0,0.1163644]
[1745282470941,0.2491816,87439.0,87438.0,0.004]
[1745282471149,0.0571846,87435.0,87430.0,0.05735872]
[1745282471345,0.4751736,87431.0,87430.0,0.00017152]
[1745282472146,0.5528,87431.0,87430.0,0.11454642]
[1745282472341,0.5528,87431.0,87430.0,0.11654642]
[1745282472542,0.55288,87431.0,87430.0,0.12054642]
[1745282472742,0.19208,87431.0,87430.0,0.12054642]
[1745282472949,0.19208,87431.0,87430.0,0.20344642]
[1745282473136,8e-05,87431.0,87430.0,0.20344642]
[1745282473541,0.1143662,87437.0,87436.0,0.114367]
[1745282474250,0.3063662,87437.0,87436.0,0.114367]
[1745282474546,0.114371,87434.0,87433.0,0.11437]
[1745282474749,0.1143736,87431.0,87430.0,0.00317152]
[1745282474944,0.1143853,87422.0,87421.0,0.1143862]
[1745282475139,0.1143853,87422.0,87416.0,0.0571963]
[1745282475140,0.1143945,87415.0,87414.0,0.1974953]
[1745282475345,0.1143971,87413.0,87412.0,0.114543]
[1745282475547,0.1143997,87412.0,87411.0,0.1143993]
[1745282475943,0.1143997,87412.0,87406.0,0.0831]
[1745282475944,0.1143997,87411.0,87406.0,0.0831]
[1745282476140,0.3063997,87411.0,87405.0,0.0573115]
[1745282476347,0.3063997,87411.0,87410.0,0.11954912]
[1745282476738,0.3063997,87411.0,87410.0,0.11962912]
[1745282477251,0.3063997,87411.0,87410.0,0.00522812]
[1745282477453,0.3063997,87411.0,87410.0,0.12162912]
[1745282478552,0.3063997,87411.0,87410.0,0.12362912]
[1745282478948,0.4208037,87411.0,87410.0,0.00922812]
[1745282479154,0.3063997,87411.0,87410.0,0.00922812]
[1745282479559,0.3063997,87411.0,87410.0,0.12362912]
[1745282480154,0.192,87411.0,87410.0,0.12362912]
[1745282480653,0.3064797,87411.0,87410.0,0.12362912]
[1745282482851,0.19208,87411.0,87410.0,0.12362912]
[1745282483155,0.3064797,87411.0,87410.0,0.12362912]
[1745282483453,0.0571846,87435.0,87417.0,0.1143919]
[1745282483753,0.0809,87429.0,87417.0,0.4751919]
[1745282483958,0.1143789,87427.0,87419.0,0.1143893]
[1745282484276,0.0809,87429.0,87419.0,0.1143893]
[1745282484458,0.00025152,87420.0,87419.0,0.1143893]
[1745282484753,0.1143723,87432.0,87431.0,0.1143723]
[1745282484961,0.1952714,87433.0,87432.0,0.1143723]
[1745282485159,0.195271,87433.0,87432.0,0.1143723]
[1745282485357,0.195351,87433.0,87432.0,0.1143723]
[1745282485558,0.1143723,87432.0,87431.0,0.192]
[1745282485756,0.1143723,87432.0,87419.0,0.17352312]
[1745282485757,0.0571931,87422.0,87419.0,0.17352312]
[1745282486055,0.3608,87420.0,87419.0,0.17352312]
[1745282486354,0.3608,87420.0,87419.0,0.17452312]
[1745282486355,0.475188,87420.0,87419.0,0.17452312]
[1745282486748,0.562088,87420.0,87419.0,0.17452312]
[1745282487162,0.562088,87420.0,87419.0,0.17652312]
[1745282487662,0.67648001,87420.0,87419.0,0.00494212]
[1745282487862,0.0571946,87419.0,87412.0,0.00017152]
[1745282488155,0.0571946,87419.0,87405.0,0.1144071]
[1745282488156,0.1144063,87406.0,87405.0,0.1144071]
[1745282488961,0.2842063,87406.0,87405.0,0.1144871]
[1745282489162,0.4762063,87406.0,87405.0,0.1144871]
[1745282489951,0.4762063,87406.0,87405.0,0.1164871]
[1745282490559,0.4762063,87406.0,87405.0,0.1184871]
[1745282492458,0.1144115,87402.0,87401.0,0.0877]
[1745282492761,0.0572076,87400.0,87399.0,0.1144154]
[1745282492966,0.1716244,87400.0,87399.0,0.1144154]
[1745282493263,0.3636244,87400.0,87399.0,0.1144154]
[1745282493461,0.5335244,87400.0,87399.0,0.1144154]
[1745282493658,0.4191076,87400.0,87399.0,0.1144154]
[1745282494267,0.4191076,87400.0,87399.0,0.1174154]
[1745282494457,0.4191076,87400.0,87399.0,0.003]
[1745282494660,0.4191076,87400.0,87398.0,0.0861]
[1745282494661,0.0572098,87396.0,87387.0,0.0001458]
[1745282494857,0.4752298,87388.0,87387.0,0.1145759]
[1745282495058,0.6672298,87388.0,87387.0,0.1145759]
[1745282495555,0.6672298,87388.0,87387.0,0.1144301]
[1745282495762,0.8308298,87388.0,87387.0,0.1165101]
[1745282496261,0.8318298,87388.0,87387.0,0.1165101]
[1745282496852,0.8318298,87388.0,87387.0,0.1145101]
[1745282498466,0.8318298,87388.0,87387.0,0.1144301]
[1745282500365,0.193,87388.0,87387.0,0.1144301]
[1745282500563,0.193,87388.0,87387.0,0.4752301]
[1745282500762,0.3074298,87388.0,87387.0,0.4752301]
[1745282500963,0.193,87388.0,87387.0,0.4752301]
[1745282501260,0.001,87388.0,87387.0,0.3064301]
[1745282501968,0.001,87388.0,87387.0,0.3074301]
[1745282502475,0.1144298,87388.0,87387.0,0.193]
[1745282502663,0.1144298,87388.0,87387.0,0.3074312]
[1745282503165,0.1144298,87388.0,87387.0,0.3085112]
[1745282503371,0.1144298,87388.0,87387.0,0.3084312]
[1745282503870,0.0572205,87380.0,87366.0,0.17489139]
[1745282504062,0.11446,87365.0,87364.0,1e-08]
[1745282504367,0.1144639,87362.0,87361.0,0.00019683]
[1745282504563,0.1144639,87362.0,87358.0,0.23809973]
[1745282504564,0.1144678,87359.0,87358.0,0.23774101]
[1745282504764,0.4752678,87359.0,87358.0,0.23774101]
[1745282504961,0.4752678,87359.0,87358.0,0.35221011]
[1745282505161,0.4752678,87359.0,87358.0,0.42974101]
[1745282505565,0.5619678,87359.0,87358.0,0.42974101]
[1745282505760,0.5619678,87359.0,87358.0,0.54421011]
[1745282506162,0.6672678,87359.0,87358.0,0.35521011]
[1745282506774,0.6682678,87359.0,87358.0,0.35821011]
[1745282506970,0.6682678,87359.0,87358.0,0.12562029]
[1745282507672,0.6682678,87359.0,87358.0,0.29562029]
[1745282508270,0.6682678,87359.0,87358.0,0.29362029]
[1745282508861,0.5538,87359.0,87358.0,0.29362029]
[1745282509058,0.192,87359.0,87358.0,0.29062029]
[1745282509262,0.001,87359.0,87358.0,0.29262029]
[1745282510068,0.001,87359.0,87358.0,0.48462029]
[1745282511070,0.001,87359.0,87358.0,0.29262029]
[1745282512066,0.001,87359.0,87358.0,0.48462029]
[1745282513074,0.3608,87376.0,87366.0,0.1144587]
[1745282513366,0.00017162,87367.0,87366.0,0.2289187]
[1745282513868,0.00017162,87367.0,87366.0,0.5897187]
[1745282514059,0.00017162,87367.0,87366.0,0.9524187]
[1745282514273,0.00017162,87367.0,87366.0,0.9534187]
[1745282514665,0.0575762,87389.0,87366.0,0.9534187]
[1745282514666,0.0003618,87389.0,87388.0,0.1144298]
[1745282515164,0.1148717,87389.0,87388.0,0.1144298]
[1745282515364,0.0004418,87389.0,87388.0,0.2851298]
[1745282515570,0.0003618,87389.0,87388.0,0.2851298]
[1745282515767,0.0004418,87389.0,87388.0,0.2851298]
[1745282515964,0.1147903,87389.0,87388.0,0.2851298]
[1745282516166,0.1158703,87389.0,87388.0,0.4771298]
[1745282516470,0.1178703,87389.0,87388.0,0.4782098]
[1745282516866,0.2848703,87389.0,87388.0,0.4782098]
[1745282517065,0.2828703,87389.0,87388.0,0.2862098]
[1745282517465,0.2818703,87389.0,87388.0,0.2862098]
[1745282518468,0.0003618,87389.0,87388.0,0.2862098]
[1745282518771,0.0004418,87389.0,87388.0,0.2862098]
[1745282519170,0.0004418,87389.0,87388.0,0.4782098]
[1745282519366,0.1148703,87389.0,87388.0,0.4782098]
[1745282521174,0.0004418,87389.0,87388.0,0.4782098]
[1745282522469,0.0571925,87423.0,87388.0,1.409012]
[1745282522671,0.1691,87422.0,87421.0,0.1143853]
[1745282522972,0.11548242,87426.0,87425.0,0.1143814]
[1745282523272,0.11548242,87426.0,87425.0,0.3063814]
[1745282523478,0.11548242,87426.0,87425.0,0.3013814]
[1745282523675,0.11556242,87426.0,87425.0,0.3013814]
[1745282523874,0.11548242,87426.0,87425.0,0.2983814]
[1745282524269,0.11556242,87426.0,87425.0,0.2983814]
[1745282524471,0.11548242,87426.0,87425.0,0.2983814]
[1745282524775,0.11556242,87426.0,87425.0,0.2983814]
[1745282524977,0.11556242,87426.0,87425.0,0.31010089]
[1745282525180,0.11556242,87426.0,87425.0,0.31110089]
[1745282525678,0.11556242,87426.0,87425.0,0.2993814]
[1745282525881,0.11556242,87426.0,87425.0,0.3003814]
[1745282526272,0.11556242,87426.0,87425.0,0.3806814]
[1745282527480,8e-05,87426.0,87425.0,0.3836814]
[1745282527978,0.1144601,87426.0,87425.0,0.3836814]
[1745282528179,0.1144601,87426.0,87425.0,0.3033814]
[1745282528869,0.1144601,87426.0,87425.0,0.197]
[1745282529069,0.1144601,87426.0,87404.0,0.0572042]
[1745282529070,0.1143906,87418.0,87411.0,0.06873357]
[1745282529280,0.1143906,87418.0,87411.0,0.01153417]
[1745282529471,0.1143906,87418.0,87417.0,0.11456352]
[1745282529979,0.1664,87418.0,87417.0,0.11456352]
[1745282530182,0.3608,87420.0,87419.0,0.1143893]
[1745282530478,0.475188,87420.0,87419.0,0.1143893]
[1745282530672,0.475268,87420.0,87419.0,0.1143893]
[1745282530872,0.114468,87420.0,87419.0,0.1143893]
[1745282531073,0.114468,87420.0,87419.0,0.3063893]
[1745282531585,0.114468,87420.0,87419.0,0.3073893]
[1745282531877,0.114468,87420.0,87419.0,0.3083893]
[1745282532078,8e-05,87420.0,87419.0,0.3083893]
[1745282533972,0.1664,87425.0,87424.0,0.1143827]
[1745282534170,0.1664,87425.0,87421.0,0.0571931]
[1745282534373,0.2235909,87425.0,87424.0,0.1143827]
[1745282534977,0.2235909,87425.0,87424.0,0.1153827]
[1745282535184,0.2245909,87425.0,87424.0,0.1153827]
[1745282535484,0.3389747,87425.0,87424.0,0.1153827]
[1745282535784,0.001,87425.0,87424.0,0.1153827]
[1745282535983,0.00108,87425.0,87424.0,0.1153827]
[1745282536279,0.00108,87425.0,87424.0,0.3073827]
[1745282536483,0.001,87425.0,87424.0,0.3073827]
[1745282536788,0.00108,87425.0,87424.0,0.3917827]
[1745282537779,0.00108,87425.0,87424.0,0.4739827]
[1745282538483,0.001,87425.0,87424.0,0.4739827]
[1745282539082,0.001,87425.0,87424.0,0.3917827]
[1745282541081,0.1153814,87425.0,87424.0,0.193]
[1745282541277,0.1143906,87418.0,87414.0,0.0571978]
[1745282541479,0.1143906,87418.0,87411.0,0.0571992]
[1745282541673,0.1143906,87418.0,87415.0,0.1143936]
[1745282542075,0.2839906,87418.0,87416.0,0.192]
[1745282542280,0.1143919,87417.0,87416.0,0.192]
[1745282542479,0.22878791,87417.0,87416.0,0.192]
[1745282542683,0.39838791,87417.0,87416.0,0.192]
[1745282542882,0.0572024,87408.0,87405.0,0.0572034]
[1745282543083,0.0572031,87406.0,87399.0,0.3608]
[1745282543281,0.0572024,87408.0,87400.0,0.1144126]
[1745282543282,0.4752141,87401.0,87400.0,0.1144126]
[1745282543483,0.1144194,87396.0,87395.0,0.0572102]
[1745282543788,0.1144207,87395.0,87394.0,0.17180182]
[1745282543982,0.2888207,87395.0,87394.0,0.17180182]
[1745282546882,0.2888207,87395.0,87394.0,0.17280182]
[1745282547180,0.4032447,87395.0,87394.0,0.00117162]
[1745282547589,0.4032447,87395.0,87394.0,0.11459362]
[1745282547788,0.2898207,87395.0,87394.0,0.11459362]
[1745282551981,0.0572124,87392.0,87388.0,8e-05]
[1745282552195,0.4752285,87389.0,87388.0,0.114509]
[1745282552490,0.4752285,87389.0,87388.0,0.114429]
[1745282552680,0.4752285,87389.0,87388.0,0.114509]
[1745282553086,0.4753085,87389.0,87388.0,0.196009]
[1745282554086,0.4753085,87389.0,87388.0,0.114509]
[1745282555689,8e-05,87389.0,87388.0,0.114509]
[1745282556284,0.1145085,87389.0,87388.0,0.114509]
[1745282556881,8e-05,87389.0,87388.0,0.114509]
[1745282557280,0.1145085,87389.0,87388.0,0.114509]
[1745282560796,8e-05,87389.0,87388.0,0.114509]
[1745282560990,0.0572057,87402.0,87399.0,0.1144154]
[1745282561189,0.00014581,87401.0,87399.0,0.1144154]
[1745282561394,0.1144148,87400.0,87399.0,0.1144154]
[1745282561794,0.00014581,87401.0,87400.0,0.1144141]
[1745282561998,0.00014581,87401.0,87400.0,0.2879141]
[1745282562600,0.1144128,87401.0,87400.0,0.2879141]
[1745282562798,0.1144928,87401.0,87400.0,0.2879141]
[1745282563002,0.2876928,87401.0,87400.0,0.2879141]
[1745282563299,0.2876928,87401.0,87400.0,0.2869141]
[1745282563693,0.2876928,87401.0,87400.0,0.2849141]
[1745282564500,0.2886928,87401.0,87400.0,0.2849141]
[1745282565799,0.00108,87401.0,87400.0,0.2849141]
[1745282565997,0.001,87401.0,87400.0,0.2849141]
[1745282566892,0.00108,87401.0,87400.0,0.2949141]
[1745282567093,0.001,87401.0,87400.0,0.2949141]
[1745282567293,0.00108,87401.0,87400.0,0.2949141]
[1745282567493,0.001,87401.0,87400.0,0.2949141]
[1745282567696,0.00108,87401.0,87400.0,0.2949141]
[1745282570709,0.00010801,87410.0,87409.0,0.1144024]
[1745282571505,0.00010801,87410.0,87409.0,0.2908024]
[1745282572400,0.00110801,87410.0,87409.0,0.2908024]
[1745282572925,0.00210801,87410.0,87409.0,0.2908024]
[1745282575417,0.002,87410.0,87409.0,0.2908024]
[1745282575809,0.00208,87410.0,87409.0,0.2908024]
[1745282577917,0.057205,87404.0,87402.0,0.171614]